[Event "*** Titled Tuesday 3|2 Blitz"]
[Site "Chess.com"]
[Date "2016.06.07"]
[Round "3"]
[White "JustaTrickstar"]
[Black "hermionegrangermagic"]
[Result "1-0"]
[WhiteElo "2471"]
[BlackElo "2287"]
[TimeControl "180+2"]
[EndTime "17:35:32 PDT"]
[Termination "JustaTrickstar won by resignation"]

1. d4 {[%clk 0:03:01.9]} 1... d5 {[%clk 0:03:00]} 2. c4 {[%clk 0:03:00.8]} 2...
e6 {[%clk 0:03:00.4]} 3. Nc3 {[%clk 0:02:57.1]} 3... Nf6 {[%clk 0:03:00.3]} 4.
cxd5 {[%clk 0:02:55.8]} 4... exd5 {[%clk 0:03:00.7]} 5. Bg5 {[%clk 0:02:57.2]}
5... Be7 {[%clk 0:02:58.2]} 6. e3 {[%clk 0:02:56.7]} 6... c6 {[%clk 0:02:57.8]}
7. Bd3 {[%clk 0:02:57.8]} 7... O-O {[%clk 0:02:58.3]} 8. Qc2 {[%clk 0:02:51.3]}
8... Nbd7 {[%clk 0:02:58.3]} 9. Nf3 {[%clk 0:02:51.7]} 9... Re8 {[%clk
0:02:52.8]} 10. O-O {[%clk 0:02:50.9]} 10... h6 {[%clk 0:02:53.7]} 11. Bf4
{[%clk 0:02:47.1]} 11... Nf8 {[%clk 0:02:38.7]} 12. h3 {[%clk 0:02:45.5]} 12...
Bd6 {[%clk 0:02:30]} 13. Bxd6 {[%clk 0:02:40.1]} 13... Qxd6 {[%clk 0:02:29.1]}
14. Rab1 {[%clk 0:02:41.5]} 14... a5 {[%clk 0:02:24.3]} 15. a3 {[%clk
0:02:41.2]} 15... N8d7 {[%clk 0:01:59.2]} 16. Rfc1 {[%clk 0:02:33.3]} 16... Qe7
{[%clk 0:01:34.1]} 17. b4 {[%clk 0:02:21.8]} 17... axb4 {[%clk 0:01:34.7]} 18.
axb4 {[%clk 0:02:21.4]} 18... Ne4 {[%clk 0:01:30.7]} 19. b5 {[%clk 0:02:19.1]}
19... Ra3 {[%clk 0:01:23.7]} 20. Bxe4 {[%clk 0:02:06.6]} 20... dxe4 {[%clk
0:01:22.7]} 21. Nd2 {[%clk 0:02:07.2]} 21... Nf6 {[%clk 0:01:14.7]} 22. Nc4
{[%clk 0:01:56.5]} 22... Ra8 {[%clk 0:01:02.7]} 23. Nb6 {[%clk 0:01:35.2]} 23...
Ra5 {[%clk 0:01:02.6]} 24. Nc4 {[%clk 0:01:30.2]} 24... Ra8 {[%clk 0:01:02.6]}
25. bxc6 {[%clk 0:01:30.3]} 25... bxc6 {[%clk 0:01:00.3]} 26. Rb6 {[%clk
0:01:29.9]} 26... Nd5 {[%clk 0:00:48.2]} 27. Nxd5 {[%clk 0:01:25.9]} 27... cxd5
{[%clk 0:00:50.1]} 28. Nd6 {[%clk 0:01:14.4]} 28... Qf6 {[%clk 0:00:20.5]} 29.
Nxc8 {[%clk 0:01:10.5]} 29... Qd8 {[%clk 0:00:13.8]} 30. Rc6 {[%clk 0:01:08.8]}
30... Qa5 {[%clk 0:00:13.3]} 31. Rc5 {[%clk 0:01:04.9]} 31... Qa3 {[%clk
0:00:13.4]} 32. Nb6 {[%clk 0:01:03.3]} 32... Rab8 {[%clk 0:00:13.9]} 33. Qa4
{[%clk 0:00:43.6]} 33... Qb2 {[%clk 0:00:11.2]} 34. Nxd5 {[%clk 0:00:42.3]}
34... Ra8 {[%clk 0:00:12.3]} 35. Qb5 {[%clk 0:00:41.6]} 35... Qd2 {[%clk
0:00:13.3]} 36. R5c2 {[%clk 0:00:39.3]} 36... Qa5 {[%clk 0:00:13.9]} 37. Qxa5
{[%clk 0:00:29.1]} 37... Rxa5 {[%clk 0:00:15.8]} 38. Rc8 {[%clk 0:00:29.8]}
38... Kf8 {[%clk 0:00:14.7]} 39. Rxe8+ {[%clk 0:00:29.7]} 39... Kxe8 {[%clk
0:00:16.6]} 40. Nc3 {[%clk 0:00:30.8]} 40... f5 {[%clk 0:00:16.5]} 41. f3 {[%clk
0:00:30.7]} 41... exf3 {[%clk 0:00:16.7]} 42. gxf3 {[%clk 0:00:32.6]} 42... Ke7
{[%clk 0:00:18]} 43. Kf2 {[%clk 0:00:33.7]} 43... Kd6 {[%clk 0:00:18.8]} 44. h4
{[%clk 0:00:33.1]} 44... g5 {[%clk 0:00:19.3]} 45. hxg5 {[%clk 0:00:33.7]} 45...
hxg5 {[%clk 0:00:21.2]} 46. Ne2 {[%clk 0:00:34.5]} 46... Rb5 {[%clk 0:00:19.7]}
47. Rg1 {[%clk 0:00:35.2]} 47... f4 {[%clk 0:00:20.1]} 48. exf4 {[%clk
0:00:36.2]} 48... gxf4 {[%clk 0:00:21.6]} 49. Nxf4 {[%clk 0:00:38.1]} 49... Rb2+
{[%clk 0:00:22.4]} 50. Ke3 {[%clk 0:00:39.2]} 50... Rb3+ {[%clk 0:00:23.7]} 51.
Nd3 {[%clk 0:00:40.6]} 51... Rb8 {[%clk 0:00:24.8]} 52. Rg6+ {[%clk 0:00:41.5]}
52... Kd5 {[%clk 0:00:26.2]} 53. Rg5+ {[%clk 0:00:42.5]} 53... Kc4 {[%clk
0:00:27.3]} 54. Rc5+ {[%clk 0:00:42.9]} 54... Kb3 {[%clk 0:00:28.3]} 55. f4
{[%clk 0:00:44]} 55... Re8+ {[%clk 0:00:28.3]} 56. Ne5 {[%clk 0:00:45.4]} 56...
Kb4 {[%clk 0:00:29.3]} 57. f5 {[%clk 0:00:46.7]} 57... Rf8 {[%clk 0:00:30.1]}
58. Ke4 {[%clk 0:00:46]} 58... Rh8 {[%clk 0:00:30.7]} 59. f6 {[%clk 0:00:46.7]}
59... Rh4+ {[%clk 0:00:31.5]} 60. Kd5 {[%clk 0:00:48]} 60... Rh6 {[%clk
0:00:32]} 61. f7 {[%clk 0:00:48.9]} 61... Rf6 {[%clk 0:00:33]} 62. Rc8 {[%clk
0:00:30]} 1-0

[Event "*** Titled Tuesday 3|2 Blitz"]
[Site "Chess.com"]
[Date "2016.06.07"]
[Round "3"]
[White "Semetey"]
[Black "Iball95"]
[Result "0-1"]
[WhiteElo "2468"]
[BlackElo "2465"]
[TimeControl "180+2"]
[EndTime "17:36:03 PDT"]
[Termination "Iball95 won by checkmate"]

1. b3 {[%clk 0:03:01.9]} 1... e5 {[%clk 0:02:51.6]} 2. Bb2 {[%clk 0:03:03.4]}
2... Nc6 {[%clk 0:02:52.1]} 3. c4 {[%clk 0:03:05]} 3... Nf6 {[%clk 0:02:51.8]}
4. e3 {[%clk 0:03:05.4]} 4... Be7 {[%clk 0:02:51.3]} 5. a3 {[%clk 0:03:05.8]}
5... O-O {[%clk 0:02:52.5]} 6. Qc2 {[%clk 0:03:07.2]} 6... Re8 {[%clk
0:02:53.5]} 7. d3 {[%clk 0:03:08]} 7... d6 {[%clk 0:02:54.4]} 8. Nf3 {[%clk
0:03:08.9]} 8... Bf5 {[%clk 0:02:55.3]} 9. Nbd2 {[%clk 0:03:09]} 9... Bf8 {[%clk
0:02:55.9]} 10. Be2 {[%clk 0:03:00.6]} 10... h6 {[%clk 0:02:56.7]} 11. O-O
{[%clk 0:03:01.2]} 11... Bh7 {[%clk 0:02:54.9]} 12. b4 {[%clk 0:03:00.5]} 12...
Ne7 {[%clk 0:02:51.9]} 13. Rfd1 {[%clk 0:02:57.5]} 13... Qd7 {[%clk 0:02:51.9]}
14. Rac1 {[%clk 0:02:58]} 14... c6 {[%clk 0:02:50.2]} 15. Bf1 {[%clk 0:02:48.6]}
15... Rad8 {[%clk 0:02:50.7]} 16. Qb3 {[%clk 0:02:44.5]} 16... Qe6 {[%clk
0:02:38.3]} 17. Nb1 {[%clk 0:02:28.6]} 17... Nf5 {[%clk 0:02:18.9]} 18. Nc3
{[%clk 0:02:26.3]} 18... g6 {[%clk 0:02:20]} 19. d4 {[%clk 0:02:23.5]} 19... e4
{[%clk 0:02:16.6]} 20. d5 {[%clk 0:02:23.4]} 20... cxd5 {[%clk 0:02:14.4]} 21.
Nxd5 {[%clk 0:02:16.6]} 21... Nxd5 {[%clk 0:02:10.2]} 22. cxd5 {[%clk
0:02:17.9]} 22... Qd7 {[%clk 0:02:09.1]} 23. Nd4 {[%clk 0:02:18.6]} 23... Bg7
{[%clk 0:01:57.5]} 24. Nxf5 {[%clk 0:02:17.1]} 24... Qxf5 {[%clk 0:01:57.7]} 25.
Bxg7 {[%clk 0:02:10.2]} 25... Kxg7 {[%clk 0:01:59.6]} 26. Rc7 {[%clk 0:02:11.1]}
26... Rd7 {[%clk 0:01:59.6]} 27. Rdc1 {[%clk 0:02:08.7]} 27... Ree7 {[%clk
0:01:47.4]} 28. Qc3+ {[%clk 0:02:02]} 28... Qf6 {[%clk 0:01:44.6]} 29. Qxf6+
{[%clk 0:01:45.8]} 29... Kxf6 {[%clk 0:01:46.5]} 30. Rc8 {[%clk 0:01:45.2]}
30... Re5 {[%clk 0:01:40]} 31. Bb5 {[%clk 0:01:41.9]} 31... Rde7 {[%clk
0:01:37.7]} 32. Bc4 {[%clk 0:01:42.3]} 32... Re8 {[%clk 0:01:13.5]} 33. Rc7
{[%clk 0:01:42.1]} 33... R8e7 {[%clk 0:01:14]} 34. Bb3 {[%clk 0:01:41.5]} 34...
Rxc7 {[%clk 0:01:11.5]} 35. Rxc7 {[%clk 0:01:42.3]} 35... Re7 {[%clk 0:01:13.2]}
36. Rc8 {[%clk 0:01:42.2]} 36... g5 {[%clk 0:01:13.2]} 37. g4 {[%clk 0:01:38.6]}
37... Bg6 {[%clk 0:01:05.5]} 38. h3 {[%clk 0:01:38.5]} 38... h5 {[%clk
0:01:06.6]} 39. Kf1 {[%clk 0:01:38.8]} 39... hxg4 {[%clk 0:01:07.8]} 40. hxg4
{[%clk 0:01:39.7]} 40... Ke5 {[%clk 0:01:07.3]} 41. b5 {[%clk 0:01:38]} 41... f6
{[%clk 0:01:04.8]} 42. Ke2 {[%clk 0:01:09.4]} 42... Be8 {[%clk 0:01:01.3]} 43.
a4 {[%clk 0:01:09.7]} 43... Bd7 {[%clk 0:01:02.4]} 44. Ra8 {[%clk 0:01:09.1]}
44... Bxg4+ {[%clk 0:01:02.4]} 45. Kd2 {[%clk 0:01:10.7]} 45... b6 {[%clk
0:01:04]} 46. Rf8 {[%clk 0:01:06]} 46... Bh5 {[%clk 0:01:04.4]} 47. Rc8 {[%clk
0:01:04.8]} 47... Bf7 {[%clk 0:01:05]} 48. Rf8 {[%clk 0:01:06.1]} 48... Rc7
{[%clk 0:01:05.4]} 49. Ba2 {[%clk 0:01:04.6]} 49... Re7 {[%clk 0:01:02]} 50. Bb3
{[%clk 0:01:05.3]} 50... f5 {[%clk 0:01:02.6]} 51. Kc3 {[%clk 0:01:04.4]} 51...
f4 {[%clk 0:01:01.3]} 52. Kd2 {[%clk 0:00:58.2]} 52... f3 {[%clk 0:00:51.6]} 53.
Kc3 {[%clk 0:00:56.3]} 53... g4 {[%clk 0:00:24.7]} 54. Ba2 {[%clk 0:00:53.6]}
54... g3 {[%clk 0:00:23.4]} 55. fxg3 {[%clk 0:00:52.5]} 55... f2 {[%clk
0:00:24]} 56. Bc4 {[%clk 0:00:53.5]} 56... Rc7 {[%clk 0:00:25.2]} 57. Rxf7
{[%clk 0:00:48.6]} 57... Rxf7 {[%clk 0:00:27.1]} 58. Bf1 {[%clk 0:00:49.5]}
58... Rg7 {[%clk 0:00:28]} 59. Kd2 {[%clk 0:00:50.6]} 59... Rxg3 {[%clk
0:00:28.7]} 60. Ke2 {[%clk 0:00:52.3]} 60... Rf3 {[%clk 0:00:29.9]} 61. Bg2
{[%clk 0:00:53.6]} 61... Rf8 {[%clk 0:00:30.1]} 62. Bf1 {[%clk 0:00:54.9]} 62...
Kxd5 {[%clk 0:00:31.3]} 63. Kd2 {[%clk 0:00:56.3]} 63... Kc5 {[%clk 0:00:32.3]}
64. Ke2 {[%clk 0:00:57.6]} 64... d5 {[%clk 0:00:33.4]} 65. Kd2 {[%clk 0:00:59]}
65... Kb4 {[%clk 0:00:34.8]} 66. a5 {[%clk 0:01:00]} 66... Kxa5 {[%clk
0:00:35.6]} 67. Kd1 {[%clk 0:00:59.9]} 67... Kb4 {[%clk 0:00:36.4]} 68. Kd2
{[%clk 0:01:01.4]} 68... Rf3 {[%clk 0:00:37.5]} 69. Kd1 {[%clk 0:00:59.8]} 69...
Rxe3 {[%clk 0:00:38]} 70. Kd2 {[%clk 0:01:01.4]} 70... d4 {[%clk 0:00:38.6]} 71.
Bg2 {[%clk 0:00:59.6]} 71... Re1 {[%clk 0:00:39.2]} 72. Bh3 {[%clk 0:00:55.2]}
72... f1=Q {[%clk 0:00:39.7]} 73. Bxf1 {[%clk 0:00:56.4]} 73... Rxf1 {[%clk
0:00:41.6]} 74. Ke2 {[%clk 0:00:57.4]} 74... Rf3 {[%clk 0:00:42.5]} 75. Kd2
{[%clk 0:00:58.5]} 75... Rf2+ {[%clk 0:00:43.6]} 76. Kc1 {[%clk 0:00:56.2]}
76... e3 {[%clk 0:00:45.5]} 77. Kb1 {[%clk 0:00:57]} 77... d3 {[%clk 0:00:47.4]}
78. Kc1 {[%clk 0:00:58.1]} 78... Kb3 {[%clk 0:00:49.3]} 79. Kd1 {[%clk
0:00:58.8]} 79... Rf1# {[%clk 0:00:51.2]} 0-1

[Event "*** Titled Tuesday 3|2 Blitz"]
[Site "Chess.com"]
[Date "2016.06.07"]
[Round "3"]
[White "Boryboy"]
[Black "Evgeny_Levin"]
[Result "1/2-1/2"]
[WhiteElo "2552"]
[BlackElo "2716"]
[TimeControl "180+2"]
[EndTime "17:36:20 PDT"]
[Termination "Game drawn by agreement"]

1. d4 {[%clk 0:03:01.9]} 1... Nf6 {[%clk 0:02:59.8]} 2. Nf3 {[%clk 0:03:01.1]}
2... e6 {[%clk 0:03:00.9]} 3. g3 {[%clk 0:03:01.1]} 3... b6 {[%clk 0:03:01.5]}
4. Bg2 {[%clk 0:03:01.3]} 4... Bb7 {[%clk 0:03:02.5]} 5. c4 {[%clk 0:03:02.8]}
5... Be7 {[%clk 0:03:02.4]} 6. O-O {[%clk 0:03:03.7]} 6... O-O {[%clk
0:03:03.5]} 7. d5 {[%clk 0:03:05.2]} 7... exd5 {[%clk 0:03:03.6]} 8. Nh4 {[%clk
0:03:05.8]} 8... c6 {[%clk 0:03:04]} 9. cxd5 {[%clk 0:03:07.1]} 9... Nxd5 {[%clk
0:03:03.5]} 10. Nf5 {[%clk 0:03:08.3]} 10... Bc5 {[%clk 0:03:04.4]} 11. e4
{[%clk 0:03:08.9]} 11... Qf6 {[%clk 0:03:05.2]} 12. Qg4 {[%clk 0:02:52.3]} 12...
Ne7 {[%clk 0:03:00.2]} 13. Bg5 {[%clk 0:02:48.9]} 13... Qg6 {[%clk 0:03:00.1]}
14. Qh4 {[%clk 0:02:42.3]} 14... f6 {[%clk 0:02:53.8]} 15. Nxe7+ {[%clk
0:02:32.5]} 15... Bxe7 {[%clk 0:02:55.7]} 16. Be3 {[%clk 0:02:27.3]} 16... Qf7
{[%clk 0:02:42.8]} 17. Nc3 {[%clk 0:02:20.6]} 17... Na6 {[%clk 0:02:35.8]} 18.
Rad1 {[%clk 0:02:18.4]} 18... Rad8 {[%clk 0:02:35.1]} 19. Qg4 {[%clk 0:02:02]}
19... Nc5 {[%clk 0:02:26]} 20. Rd2 {[%clk 0:01:48.3]} 20... f5 {[%clk
0:02:14.1]} 21. exf5 {[%clk 0:01:35.1]} 21... Qxf5 {[%clk 0:02:16]} 22. Qxf5
{[%clk 0:01:05.5]} 22... Rxf5 {[%clk 0:02:17.9]} 23. Bh3 {[%clk 0:00:51]} 23...
Re5 {[%clk 0:01:59.9]} 24. Bf4 {[%clk 0:00:41.5]} 24... Rh5 {[%clk 0:01:55]} 25.
Bg4 {[%clk 0:00:40.2]} 25... Rg5 {[%clk 0:01:23.2]} 26. Bxg5 {[%clk 0:00:36.9]}
26... Bxg5 {[%clk 0:01:25.1]} 27. Rdd1 {[%clk 0:00:29.7]} 27... d5 {[%clk
0:01:22.2]} 28. b4 {[%clk 0:00:29.7]} 28... Nd7 {[%clk 0:01:01.7]} 29. b5 {[%clk
0:00:23.6]} 29... Ne5 {[%clk 0:01:00.7]} 30. Be6+ {[%clk 0:00:24.8]} 30... Nf7
{[%clk 0:00:57.5]} 31. bxc6 {[%clk 0:00:25.9]} 31... Bxc6 {[%clk 0:00:59.4]} 32.
Nxd5 {[%clk 0:00:27.1]} 32... Kf8 {[%clk 0:00:51.2]} 33. Nb4 {[%clk 0:00:23]}
33... Bf3 {[%clk 0:00:45.8]} 34. Rxd8+ {[%clk 0:00:23.1]} 34... Nxd8 {[%clk
0:00:46.2]} 35. Bd5 {[%clk 0:00:24.2]} 35... Be2 {[%clk 0:00:46.2]} 36. Re1
{[%clk 0:00:23.9]} 36... Bh5 {[%clk 0:00:47.1]} 37. f4 {[%clk 0:00:24.5]} 37...
Be7 {[%clk 0:00:46.6]} 38. Nc6 {[%clk 0:00:24.8]} 38... Bc5+ {[%clk 0:00:46.6]}
39. Kg2 {[%clk 0:00:26.2]} 39... Nxc6 {[%clk 0:00:45.2]} 40. Bxc6 {[%clk
0:00:27.3]} 40... Bf7 {[%clk 0:00:47.1]} 41. Re2 {[%clk 0:00:27.2]} 41... a5
{[%clk 0:00:44.9]} 42. a4 {[%clk 0:00:26]} 42... Bc4 {[%clk 0:00:43.9]} 43. Re8+
{[%clk 0:00:23.6]} 43... Kf7 {[%clk 0:00:44.9]} 44. Rd8 {[%clk 0:00:24.9]} 44...
h5 {[%clk 0:00:42.7]} 45. Bd5+ {[%clk 0:00:25.9]} 45... Ke7 {[%clk 0:00:37.2]}
46. Bxc4 {[%clk 0:00:20.9]} 46... Kxd8 {[%clk 0:00:37.6]} 47. Bf7 {[%clk
0:00:15.8]} 47... h4 {[%clk 0:00:38]} 48. g4 {[%clk 0:00:15.1]} 48... Ke7 {[%clk
0:00:38.8]} 49. Bc4 {[%clk 0:00:16.1]} 49... g5 {[%clk 0:00:25.6]} 50. fxg5
{[%clk 0:00:16.2]} 50... Be3 {[%clk 0:00:26.6]} 51. g6 {[%clk 0:00:17.2]} 51...
Kf6 {[%clk 0:00:27.3]} 52. Bd3 {[%clk 0:00:17.6]} 52... Kg7 {[%clk 0:00:25.4]}
53. Kf3 {[%clk 0:00:18]} 53... Bg5 {[%clk 0:00:24.7]} 54. h3 {[%clk 0:00:17.5]}
54... Kf6 {[%clk 0:00:24.7]} 55. Be4 {[%clk 0:00:16.3]} 55... Bh6 {[%clk
0:00:25.3]} 56. Ke2 {[%clk 0:00:17]} 56... Bf4 {[%clk 0:00:24.3]} 57. Kd3 {[%clk
0:00:18.2]} 57... Bh6 {[%clk 0:00:21.9]} 58. Kd4 {[%clk 0:00:19.5]} 58... Bf4
{[%clk 0:00:22.4]} 59. Kd5 {[%clk 0:00:20.9]} 59... Be3 {[%clk 0:00:22.5]} 60.
Kd6 {[%clk 0:00:22.1]} 60... Bd4 {[%clk 0:00:20.7]} 61. Kd7 {[%clk 0:00:23.2]}
61... Be3 {[%clk 0:00:20.8]} 62. Ke8 {[%clk 0:00:23.9]} 62... Bc5 {[%clk
0:00:20.6]} 63. g5+ {[%clk 0:00:21.4]} 63... Kg7 {[%clk 0:00:20.5]} 64. Kd7
{[%clk 0:00:22.7]} 64... Bf2 {[%clk 0:00:20.7]} 65. Kc6 {[%clk 0:00:23.7]} 65...
Bc5 {[%clk 0:00:21.8]} 66. Bf5 {[%clk 0:00:25.2]} 66... Be3 {[%clk 0:00:22.7]}
67. Kd5 {[%clk 0:00:26.6]} 67... Bxg5 {[%clk 0:00:23]} 68. Kc6 {[%clk
0:00:27.1]} 68... Be3 {[%clk 0:00:24]} 69. Kd5 {[%clk 0:00:28.6]} 69... Bg5
{[%clk 0:00:24.7]} 1/2-1/2

[Event "*** Titled Tuesday 3|2 Blitz"]
[Site "Chess.com"]
[Date "2016.06.07"]
[Round "3"]
[White "Kawhi_Leonard2"]
[Black "Danhy"]
[Result "0-1"]
[WhiteElo "2033"]
[BlackElo "2469"]
[TimeControl "180+2"]
[EndTime "17:37:54 PDT"]
[Termination "Danhy won on time"]

1. e4 {[%clk 0:03:01.9]} 1... c5 {[%clk 0:02:59.9]} 2. Nf3 {[%clk 0:03:02.6]}
2... g6 {[%clk 0:03:00.4]} 3. d4 {[%clk 0:03:03.8]} 3... cxd4 {[%clk 0:03:01.3]}
4. Nxd4 {[%clk 0:03:05.4]} 4... Bg7 {[%clk 0:03:01.9]} 5. c4 {[%clk 0:03:06.2]}
5... Nc6 {[%clk 0:03:01.7]} 6. Be3 {[%clk 0:03:06.5]} 6... Nf6 {[%clk
0:03:01.8]} 7. Nc3 {[%clk 0:03:07.9]} 7... O-O {[%clk 0:03:01.2]} 8. Be2 {[%clk
0:03:09.4]} 8... d6 {[%clk 0:03:00.8]} 9. O-O {[%clk 0:03:10.8]} 9... Bd7 {[%clk
0:02:56]} 10. Qd2 {[%clk 0:03:11.5]} 10... Nxd4 {[%clk 0:02:55.9]} 11. Bxd4
{[%clk 0:03:11.4]} 11... Bc6 {[%clk 0:02:50.6]} 12. f3 {[%clk 0:03:12.2]} 12...
a5 {[%clk 0:02:48]} 13. Rab1 {[%clk 0:03:10.5]} 13... Nd7 {[%clk 0:02:47]} 14.
Bf2 {[%clk 0:03:11]} 14... Nc5 {[%clk 0:02:45.2]} 15. b3 {[%clk 0:03:11]} 15...
Qb6 {[%clk 0:02:42.9]} 16. a3 {[%clk 0:03:02]} 16... Qc7 {[%clk 0:02:33.8]} 17.
Bd1 {[%clk 0:03:00]} 17... Rfc8 {[%clk 0:02:31.2]} 18. b4 {[%clk 0:02:53.7]}
18... axb4 {[%clk 0:02:30.4]} 19. axb4 {[%clk 0:02:54.5]} 19... Na4 {[%clk
0:02:30.8]} 20. Bxa4 {[%clk 0:02:31.4]} 20... Bxa4 {[%clk 0:02:31]} 21. Nd5
{[%clk 0:02:24.4]} 21... Qd8 {[%clk 0:02:31]} 22. Nb6 {[%clk 0:02:25]} 22... Bd7
{[%clk 0:02:27.5]} 23. Rfd1 {[%clk 0:02:11.7]} 23... Be6 {[%clk 0:02:22.1]} 24.
Nxc8 {[%clk 0:01:51.5]} 24... Qxc8 {[%clk 0:02:20.9]} 25. c5 {[%clk 0:01:50.6]}
25... dxc5 {[%clk 0:02:19.4]} 26. Bxc5 {[%clk 0:01:48.9]} 26... Ba2 {[%clk
0:02:16.4]} 27. Rbc1 {[%clk 0:01:47.2]} 27... Bb3 {[%clk 0:02:17.2]} 28. Bxe7
{[%clk 0:01:40.5]} 28... Qe8 {[%clk 0:02:11.2]} 29. Bc5 {[%clk 0:01:27.7]} 29...
Bxd1 {[%clk 0:02:06.3]} 30. Rxd1 {[%clk 0:01:28.2]} 30... Qc6 {[%clk 0:02:06]}
31. Qd7 {[%clk 0:01:17.7]} 31... Qa6 {[%clk 0:01:53.7]} 32. Qe7 {[%clk
0:01:07.8]} 32... Bf6 {[%clk 0:01:39.4]} 33. Qd6 {[%clk 0:01:01.9]} 33... Qa4
{[%clk 0:01:35.6]} 34. Rd2 {[%clk 0:00:48.2]} 34... Rd8 {[%clk 0:01:32.4]} 35.
Qf4 {[%clk 0:00:38.6]} 35... Rxd2 {[%clk 0:01:30.7]} 36. Qxd2 {[%clk 0:00:38.7]}
36... Qa1+ {[%clk 0:01:31.2]} 37. Kf2 {[%clk 0:00:39.1]} 37... h5 {[%clk
0:01:31.7]} 38. g3 {[%clk 0:00:27.2]} 38... Qh1 {[%clk 0:01:28.8]} 39. Ke3
{[%clk 0:00:27.8]} 39... Qg1+ {[%clk 0:01:26.2]} 40. Kd3 {[%clk 0:00:24.8]}
40... Qf1+ {[%clk 0:01:26.5]} 41. Qe2 {[%clk 0:00:22.2]} 41... Qa1 {[%clk
0:01:24.3]} 42. Ke3 {[%clk 0:00:19.9]} 42... Qc3+ {[%clk 0:01:21.2]} 43. Qd3
{[%clk 0:00:19.1]} 43... Qe1+ {[%clk 0:01:17.8]} 44. Qe2 {[%clk 0:00:18.8]}
44... Qg1+ {[%clk 0:01:16.4]} 45. Kd3 {[%clk 0:00:19.6]} 45... Qa1 {[%clk
0:01:14.2]} 46. Ke3 {[%clk 0:00:20.2]} 46... b6 {[%clk 0:01:13.6]} 47. Bxb6
{[%clk 0:00:15.6]} 47... Qg1+ {[%clk 0:01:10.8]} 48. Qf2 {[%clk 0:00:14.3]}
48... Qc1+ {[%clk 0:01:10.2]} 49. Qd2 {[%clk 0:00:14.8]} 49... Qg1+ {[%clk
0:01:08.9]} 50. Qf2 {[%clk 0:00:15.5]} 50... Qa1 {[%clk 0:01:05.8]} 51. Qd2
{[%clk 0:00:13.9]} 51... Bb2 {[%clk 0:01:00]} 52. Qd8+ {[%clk 0:00:10.8]} 52...
Kh7 {[%clk 0:00:56.4]} 53. Bd4 {[%clk 0:00:03.8]} 53... Qe1+ {[%clk 0:00:53.3]}
54. Kd3 {[%clk 0:00:04.3]} 54... Qd1+ {[%clk 0:00:52]} 55. Kc4 {[%clk
0:00:05.2]} 55... Qc2+ {[%clk 0:00:48.7]} 56. Kb5 {[%clk 0:00:05.6]} 56... Qd3+
{[%clk 0:00:47.1]} 57. Kc5 {[%clk 0:00:06.5]} 57... Qc2+ {[%clk 0:00:46.2]} 58.
Kb5 {[%clk 0:00:07.3]} 58... Bxd4 {[%clk 0:00:39.5]} 59. Qxd4 {[%clk 0:00:07]}
59... Qxh2 {[%clk 0:00:39.6]} 60. Qe5 {[%clk 0:00:06.9]} 60... h4 {[%clk
0:00:37.3]} 61. Qf6 {[%clk 0:00:07.3]} 61... Qxg3 {[%clk 0:00:36.2]} 62. Qxf7+
{[%clk 0:00:07.9]} 62... Kh6 {[%clk 0:00:36.5]} 63. Qf8+ {[%clk 0:00:08.5]}
63... Kg5 {[%clk 0:00:36.2]} 64. Qe7+ {[%clk 0:00:08.5]} 64... Kf4 {[%clk
0:00:31.7]} 65. e5 {[%clk 0:00:06.9]} 65... Kxf3 {[%clk 0:00:31]} 66. e6 {[%clk
0:00:07.5]} 66... Qe5+ {[%clk 0:00:30.2]} 67. Kc4 {[%clk 0:00:07.4]} 67... Qe4+
{[%clk 0:00:24.8]} 68. Kc5 {[%clk 0:00:08.1]} 68... h3 {[%clk 0:00:22.7]} 69.
Qf7+ {[%clk 0:00:07.7]} 69... Kg4 {[%clk 0:00:20.1]} 70. e7 {[%clk 0:00:08.8]}
70... Qe5+ {[%clk 0:00:19.1]} 71. Kc4 {[%clk 0:00:08.6]} 71... Qe4+ {[%clk
0:00:19.7]} 72. Kc5 {[%clk 0:00:09]} 72... Qe5+ {[%clk 0:00:20.6]} 73. Kc6
{[%clk 0:00:10]} 73... h2 {[%clk 0:00:19.9]} 74. e8=Q {[%clk 0:00:10.2]} 74...
h1=Q+ {[%clk 0:00:20.3]} 75. Kb6 {[%clk 0:00:10.1]} 75... Qg1+ {[%clk
0:00:17.8]} 76. Kb7 {[%clk 0:00:08.2]} 76... Qg2+ {[%clk 0:00:17.9]} 77. Kb6
{[%clk 0:00:08.7]} 77... Qd6+ {[%clk 0:00:13.6]} 0-1

[Event "*** Titled Tuesday 3|2 Blitz"]
[Site "Chess.com"]
[Date "2016.06.07"]
[Round "4"]
[White "metalbattler"]
[Black "BikingBrian"]
[Result "1-0"]
[WhiteElo "1984"]
[BlackElo "2095"]
[TimeControl "180+2"]
[EndTime "17:41:21 PDT"]
[Termination "metalbattler won by resignation"]

1. e4 {[%clk 0:02:37.8]} 1... c5 {[%clk 0:02:58.4]} 2. Nc3 {[%clk 0:02:38.5]}
2... Nc6 {[%clk 0:02:58.8]} 3. Bb5 {[%clk 0:02:38.3]} 3... Nd4 {[%clk
0:02:58.6]} 4. Nf3 {[%clk 0:02:37.9]} 4... Nxb5 {[%clk 0:02:53.1]} 5. Nxb5
{[%clk 0:02:39.8]} 5... a6 {[%clk 0:02:41.4]} 6. Nc3 {[%clk 0:02:40.2]} 6... g6
{[%clk 0:02:41.7]} 7. d4 {[%clk 0:02:41.3]} 7... cxd4 {[%clk 0:02:42.6]} 8. Qxd4
{[%clk 0:02:43.2]} 8... f6 {[%clk 0:02:36.3]} 9. O-O {[%clk 0:02:37.4]} 9... Bg7
{[%clk 0:02:24.2]} 10. Be3 {[%clk 0:02:35.2]} 10... Kf7 {[%clk 0:02:22.5]} 11.
Rad1 {[%clk 0:02:25]} 11... Nh6 {[%clk 0:02:10.3]} 12. Qc4+ {[%clk 0:02:05.7]}
12... e6 {[%clk 0:02:10.7]} 13. Nd4 {[%clk 0:02:05]} 13... Ng4 {[%clk
0:02:09.1]} 14. Nxe6 {[%clk 0:02:02]} 14... Nxe3 {[%clk 0:02:07.7]} 15. Nxd8+
{[%clk 0:02:01]} 1-0

[Event "*** Titled Tuesday 3|2 Blitz"]
[Site "Chess.com"]
[Date "2016.06.07"]
[Round "4"]
[White "djgwards"]
[Black "Newlight1"]
[Result "0-1"]
[WhiteElo "2085"]
[BlackElo "2192"]
[TimeControl "180+2"]
[EndTime "17:42:04 PDT"]
[Termination "Newlight1 won by resignation"]

1. d4 {[%clk 0:03:01.9]} 1... Nf6 {[%clk 0:02:59.1]} 2. c4 {[%clk 0:03:02.3]}
2... c5 {[%clk 0:02:56.1]} 3. d5 {[%clk 0:03:03.3]} 3... e6 {[%clk 0:02:57.5]}
4. Nc3 {[%clk 0:03:04]} 4... exd5 {[%clk 0:02:58.4]} 5. cxd5 {[%clk 0:03:05.9]}
5... d6 {[%clk 0:02:58.1]} 6. e4 {[%clk 0:03:07]} 6... g6 {[%clk 0:02:59.5]} 7.
Nge2 {[%clk 0:03:07.8]} 7... Bg7 {[%clk 0:03:01]} 8. Ng3 {[%clk 0:03:09]} 8...
O-O {[%clk 0:03:01.9]} 9. Be2 {[%clk 0:03:10.3]} 9... a6 {[%clk 0:03:02.1]} 10.
a4 {[%clk 0:03:10.9]} 10... Re8 {[%clk 0:03:03.6]} 11. O-O {[%clk 0:03:11.5]}
11... Nbd7 {[%clk 0:03:03.7]} 12. f3 {[%clk 0:03:11.8]} 12... Qc7 {[%clk
0:03:01.7]} 13. Bg5 {[%clk 0:03:10.1]} 13... h6 {[%clk 0:03:00.9]} 14. Be3
{[%clk 0:03:11]} 14... Rb8 {[%clk 0:02:58.4]} 15. Qd2 {[%clk 0:03:12.3]} 15...
c4 {[%clk 0:02:36.5]} 16. Bxh6 {[%clk 0:03:10.5]} 16... b5 {[%clk 0:01:49]} 17.
axb5 {[%clk 0:03:06.3]} 17... axb5 {[%clk 0:01:50.9]} 18. Bxg7 {[%clk
0:03:01.5]} 18... Kxg7 {[%clk 0:01:50.4]} 19. Rfc1 {[%clk 0:02:43.2]} 19... Qb6+
{[%clk 0:01:45.5]} 20. Kh1 {[%clk 0:02:42.3]} 20... Nc5 {[%clk 0:01:43.5]} 21.
Bd1 {[%clk 0:02:23]} 21... Nd3 {[%clk 0:01:42.4]} 22. Be2 {[%clk 0:02:16.3]}
22... Nf2+ {[%clk 0:01:34.7]} 0-1